fUST/lending_fUST_20240619
["ID","MTS","AMOUNT","RATE_DAILY","PERIOD"]
[329886472,1718793362075,154.81422293,9.999e-05,2]
[329886481,1718794040126,-218.7235122,0.00015273,2]
[329886482,1718794042172,-2166.07500886,0.00015273,2]
[329886483,1718794084174,273.37336231,9.9e-05,2]
[329886484,1718794114625,842.09563822,9.999e-05,2]
[329886486,1718794155136,-286.91036828,0.00015273,2]
[329886487,1718794155159,-100.36173924,0.00015273,2]
[329886489,1718794174363,286.91036828,0.00015,2]
[329886490,1718794192366,130.33607551,0.00015,2]
[329886491,1718794192388,156.57429277,0.00015,2]
[329886494,1718794212367,143.42570723,0.00015,2]
[329886554,1718794232916,-143.48466105,0.00015,2]
[329886556,1718794232930,-196.01535555,0.00017947,2]
[329886586,1718794239066,-1736.31005915,0.00017947,2]
[329886587,1718794239076,-154.81422293,0.00018,2]
[329886588,1718794239087,-825.44569832,0.00018897,2]
[329886589,1718794239097,-477.09395427,0.00018898,2]
[329886590,1718794239107,-1306.06068608,0.00018899,2]
[329886591,1718794239117,-1600.0,0.000189,2]
[329886592,1718794239127,-241.17005493,0.00018995,2]
[329886593,1718794239142,-58.82994507,0.00018995,2]
[329886594,1718794239152,-441.17005493,0.00018996,2]
[329886595,1718794239165,-619.69894878,0.00018996,2]
[329886597,1718794239178,-102.14166358,0.00018996,2]
[329886598,1718794239188,-163.25901194,0.00019,2]
[329886600,1718794239198,-250.0,0.00019041,2]
[329886601,1718794239207,-276.01883399,0.0001909,2]
[329886602,1718794239218,-19100.26112648,0.00019091,2]
[329886620,1718794241374,-10918.2458691,0.00019091,2]
[329886622,1718794241386,-1893.55249907,0.00019091,2]
[329886625,1718794241402,-184.621822,0.00019096,2]
[329886627,1718794241412,-1649.6442841,0.00019178,2]
[329886629,1718794241421,-15.40282245,0.00019178,2]
[329886631,1718794241433,-1634.24146165,0.00019178,2]
[329886633,1718794241443,-1649.6442841,0.00019178,2]
[329886635,1718794241452,-1649.6442841,0.00019178,2]
[329886637,1718794241461,-1649.6442841,0.00019178,2]
[329886639,1718794241471,-1649.6442841,0.00019178,2]
[329886641,1718794241481,-1649.6442841,0.00019178,2]
[329886642,1718794241490,-1649.6442841,0.00019178,2]
[329886643,1718794241499,-1649.6442841,0.00019178,2]
[329886644,1718794241509,-1649.6442841,0.00019178,2]
[329886645,1718794241518,-1649.6442841,0.00019178,2]
[329886646,1718794241527,-1649.6442841,0.00019178,2]
[329886647,1718794241537,-1649.6442841,0.00019178,2]
[329886648,1718794241547,-1649.6442841,0.00019178,2]
[329886649,1718794241556,-1649.6442841,0.00019178,2]
[329886650,1718794241565,-1649.6442841,0.00019178,2]
[329886651,1718794241575,-1649.6442841,0.00019178,2]
[329886652,1718794241584,-1649.6442841,0.00019178,2]
[329886653,1718794241593,-1649.6442841,0.00019178,2]
[329886654,1718794241602,-1649.6442841,0.00019178,2]
[329886655,1718794241611,-1649.6442841,0.00019178,2]
[329886656,1718794241621,-1649.6442841,0.00019178,2]
[329886657,1718794241630,-1649.6442841,0.00019178,2]
[329886658,1718794241642,-1649.6442841,0.00019178,2]
[329886659,1718794241652,-1649.6442841,0.00019178,2]
[329886660,1718794241661,-1649.6442841,0.00019178,2]
[329886661,1718794241670,-1649.6442841,0.00019178,2]
[329886662,1718794241679,-1649.6442841,0.00019178,2]
[329886663,1718794241688,-1649.6442841,0.00019178,2]
[329886664,1718794241697,-1649.6442841,0.00019178,2]
[329886665,1718794241706,-1649.6442841,0.00019178,2]
[329886666,1718794241715,-1649.6442841,0.00019178,2]
[329886667,1718794241723,-1649.6442841,0.00019178,2]
[329886668,1718794241732,-1649.6442841,0.00019178,2]
[329886669,1718794241743,-1649.6442841,0.00019178,2]
[329886670,1718794241752,-1649.6442841,0.00019178,2]
[329886671,1718794241761,-1649.6442841,0.00019178,2]
[329886672,1718794241771,-1649.6442841,0.00019178,2]
[329886673,1718794241780,-1649.6442841,0.00019178,2]
[329886674,1718794241789,-1649.6442841,0.00019178,2]
[329886675,1718794241799,-1649.6442841,0.00019178,2]
[329886676,1718794241808,-1649.6442841,0.00019178,2]
[329886677,1718794241817,-1649.6442841,0.00019178,2]
[329886678,1718794241826,-1649.6442841,0.00019178,2]
[329886679,1718794241835,-1649.6442841,0.00019178,2]
[329886680,1718794241844,-1649.6442841,0.00019178,2]
[329886681,1718794241853,-1649.6442841,0.00019178,2]
[329886682,1718794241863,-1649.6442841,0.00019178,2]
[329886683,1718794241872,-1649.6442841,0.00019178,2]
[329886684,1718794241882,-1649.6442841,0.00019178,2]
[329886685,1718794241893,-1649.6442841,0.00019178,2]
[329886686,1718794241902,-1649.6442841,0.00019178,2]
[329886687,1718794241911,-1649.6442841,0.00019178,2]
[329886688,1718794241923,-1649.6442841,0.00019178,2]
[329886689,1718794241934,-1649.6442841,0.00019178,2]
[329886690,1718794241943,-1615.68101943,0.00019178,2]
[329886691,1718794241953,-1615.68101943,0.00019178,2]
[329886692,1718794241963,-1615.68101943,0.00019178,2]
[329886693,1718794241972,-1615.68101943,0.00019178,2]
[329886694,1718794241981,-1615.68101943,0.00019178,2]
[329886695,1718794241991,-1615.68101943,0.00019178,2]
[329886696,1718794242000,-1615.68101943,0.00019178,2]
[329886697,1718794242010,-1615.68101943,0.00019178,2]
[329886698,1718794242020,-1615.68101943,0.00019178,2]
[329886699,1718794242029,-1615.68101943,0.00019178,2]
[329886700,1718794242038,-1615.68101943,0.00019178,2]
[329886701,1718794242047,-1615.68101943,0.00019178,2]
[329886702,1718794242057,-1615.68101943,0.00019178,2]
[329886703,1718794242066,-1615.68101943,0.00019178,2]
[329886704,1718794242074,-1615.68101943,0.00019178,2]
[329886705,1718794242084,-1615.68101943,0.00019178,2]
[329886706,1718794242094,-1615.68101943,0.00019178,2]
[329886707,1718794242103,-1615.68101943,0.00019178,2]
[329886708,1718794242113,-1615.68101943,0.00019178,2]
[329886709,1718794242122,-1615.68101943,0.00019178,2]
[329886710,1718794242131,-1615.68101943,0.00019178,2]
[329886711,1718794242143,-1615.68101943,0.00019178,2]
[329886712,1718794242152,-1615.68101943,0.00019178,2]
[329886713,1718794242161,-1615.68101943,0.00019178,2]
[329886714,1718794242170,-1615.68101943,0.00019178,2]
[329886715,1718794242180,-1615.68101943,0.00019178,2]
[329886716,1718794242189,-1615.68101943,0.00019178,2]
[329886717,1718794242199,-1615.68101943,0.00019178,2]
[329886718,1718794242208,-1615.68101943,0.00019178,2]
[329886719,1718794242218,-1615.68101943,0.00019178,2]
[329886720,1718794242227,-1699.45707229,0.00019178,2]
[329886721,1718794242237,-1699.45707229,0.00019178,2]
[329886722,1718794242246,-1699.45707229,0.00019178,2]
[329886723,1718794242256,-796.42864244,0.00019178,2]
[329886724,1718794242270,-903.02842986,0.00019178,2]
[329886725,1718794242280,-1699.45707229,0.00019178,2]
[329886726,1718794242290,-500.0,0.00019178,2]
[329886727,1718794242300,-209.63983432,0.00019178,2]
[329886728,1718794242310,-522.61860006,0.00019178,2]
[329886729,1718794242319,-500.0,0.00019178,2]
[329886730,1718794242329,-500.0,0.00019178,2]
[329886731,1718794242338,-500.0,0.00019178,2]
[329886732,1718794242348,-208.66856055,0.00019178,2]
[329886733,1718794242357,-273.65691207,0.00019247,15]
[329886734,1718794242366,-24900.0,0.00019247,2]
[329886735,1718794242375,-321.1258592,0.0002,2]
[329886736,1718794242385,-420.0,0.00020895,2]
[329886737,1718794242396,-187.5,0.00021096,2]
[329886738,1718794242405,-712.5,0.00021096,2]
[329886739,1718794242414,-166.666666,0.00021918,2]
[329886740,1718794242423,-242.45261752,0.00022,2]
[329886741,1718794242431,-166.666666,0.00022431,2]
[329886742,1718794242440,-166.666666,0.00022944,2]
[329886743,1718794242449,-180.0,0.00022984,2]
[329886744,1718794242459,-557.26244963,0.00023,2]
[329886745,1718794242469,-615.37066309,0.00023,2]
[329886746,1718794242478,-166.666666,0.00023456,2]
[329886747,1718794242487,-166.666666,0.00023969,2]
[329886748,1718794242496,-285.0,0.00024,2]
[329886749,1718794242506,-166.666666,0.00024482,2]
[329886750,1718794242516,-200.0,0.00024658,15]
[329886751,1718794242525,-402.10409234,0.00025,2]
[329886752,1718794242534,-184.621822,0.00025301,2]
[329886753,1718794242544,-183.62553417,0.0002544,2]
[329886754,1718794242553,-155.20748011,0.0002544,2]
[329886755,1718794242562,-297.00270438,0.00025443,2]
[329886756,1718794242571,-155.4358728,0.00025443,2]
[329886757,1718794242581,-285.67716783,0.00025443,2]
[329886758,1718794242592,-608.88969159,0.00025443,2]
[329886759,1718794242602,-59609.75359022,0.00025443,2]
[329886760,1718794242611,-155.49394706,0.00025443,2]
[329886761,1718794242620,-174.75488673,0.00025443,2]
[329886762,1718794242631,-206.47994321,0.00025443,2]
[329886763,1718794242641,-411.64915333,0.00025443,2]
[329886764,1718794242651,-686.51550809,0.00025443,2]
[329886765,1718794242660,-151.0,0.00025443,2]
[329886766,1718794242671,-151.0,0.00025443,2]
[329886767,1718794242680,-280.072934,0.00025443,2]
[329886768,1718794242690,-151.0,0.00025443,2]
[329886769,1718794242699,-151.0,0.00025443,2]
[329886770,1718794242708,-320.954775,0.00025443,2]
[329886771,1718794242718,-320.954775,0.00025443,2]
[329886772,1718794242728,-151.0,0.00025443,2]
[329886773,1718794242738,-151.0,0.00025443,2]
[329886774,1718794242747,-167.766167,0.00025443,2]
[329886775,1718794242757,-151.0,0.00025443,2]
[329886776,1718794242767,-151.0,0.00025443,2]
[329886777,1718794242776,-151.0,0.00025443,2]
[329886778,1718794242785,-151.0,0.00025443,2]
[329886779,1718794242795,-307.25205263,0.00025444,2]
[329886780,1718794242806,-7922.90185595,0.00025444,2]
[329886781,1718794242815,-687.74554244,0.00025445,2]
[329886782,1718794242824,-687.74554244,0.00025456,2]
[329886783,1718794242834,-308.63790957,0.00025457,2]
[329886784,1718794242843,-2038.35365167,0.00025482,2]
[329886785,1718794242853,-304.39104242,0.00025482,2]
[329886786,1718794242862,-555.67188128,0.00025483,2]
[329886787,1718794242871,-669.07340969,0.00025567,2]
[329886788,1718794242881,-669.07340969,0.00025605,2]
[329886789,1718794242892,-687.74554244,0.00025638,2]
[329886790,1718794242902,-687.74554244,0.00025661,2]
[329886791,1718794242913,-1977.05131746,0.00025671,2]
[329886792,1718794242931,-669.07340969,0.00025736,2]
[329886793,1718794242950,-669.07340969,0.0002574,2]
[329886794,1718794242962,-687.74554244,0.00025767,2]
[329886795,1718794242972,-687.74554244,0.00025795,2]
[329886796,1718794242982,-687.74554244,0.00025901,2]
[329886797,1718794242991,-198.49736478,0.00025902,2]
[329886798,1718794243000,-669.07340969,0.00025909,2]
[329886799,1718794243010,-292.432225,0.00025949,2]
[329886800,1718794243019,-969.61079595,0.00026,2]
[329886801,1718794243028,-1999.999999,0.00026,2]
[329886802,1718794243038,-669.07340969,0.00026026,2]
[329886803,1718794243048,-669.07340969,0.00026039,2]
[329886804,1718794243057,-687.74554244,0.00026058,2]
[329886805,1718794243066,-687.74554244,0.00026076,2]
[329886806,1718794243075,-687.74554244,0.0002612,2]
[329886807,1718794243085,-669.07340969,0.00026284,2]
[329886808,1718794243094,-687.74554244,0.00026299,2]
[329886809,1718794243103,-669.07340969,0.00026303,2]
[329886810,1718794243112,-687.74554244,0.00026324,2]
[329886811,1718794243122,-669.07340969,0.00026334,2]
[329886812,1718794243131,-669.07340969,0.00026342,2]
[329886813,1718794243142,-669.07340969,0.00026375,2]
[329886814,1718794243151,-669.07340969,0.0002639,2]
[329886815,1718794243161,-669.07340969,0.0002644,2]
[329886816,1718794243171,-3000.0,0.000265,2]
[329886817,1718794243180,-3000.0,0.0002651,2]
[329886818,1718794243190,-3000.0,0.0002652,2]
[329886819,1718794243199,-669.07340969,0.00026529,2]
[329886820,1718794243210,-151.0,0.00026529,2]
[329886821,1718794243222,-151.0,0.0002653,2]
[329886822,1718794243232,-3000.0,0.0002653,2]
[329886823,1718794243241,-151.0,0.0002653,2]
[329886824,1718794243251,-183.0996,0.0002653,2]
[329886825,1718794243262,-320.954775,0.0002653,2]
[329886826,1718794243271,-320.954775,0.0002653,2]
[329886827,1718794243281,-151.0,0.0002653,2]
[329886828,1718794243290,-151.0,0.0002653,2]
[329886829,1718794243300,-151.0,0.0002653,2]
[329886830,1718794243309,-151.0,0.0002653,2]
[329886831,1718794243319,-3000.0,0.0002654,2]
[329886832,1718794243329,-669.07340969,0.0002654,2]
[329886833,1718794243338,-3033.315287,0.0002655,2]
[329886834,1718794243347,-669.07340969,0.00026592,2]
[329886835,1718794243357,-669.07340969,0.00026622,2]
[329886836,1718794243366,-687.74554244,0.00026668,2]
[329886837,1718794243375,-669.07340969,0.00026721,2]
[329886838,1718794243385,-687.74554244,0.00026759,2]
[329886839,1718794243396,-669.07340969,0.00026776,2]
[329886840,1718794243405,-669.07340969,0.00026834,2]
[329886841,1718794243414,-687.74554244,0.00026875,2]
[329886842,1718794243424,-687.74554244,0.00026903,2]
[329886843,1718794243434,-154.81422293,0.0002691,2]
[329886844,1718794243443,-1463.77938873,0.0002691,2]
[329886846,1718794243453,-225.27800044,0.0002691,2]
[329886847,1718794243462,-5460.67065011,0.0002691,2]
[329886848,1718794243471,-1580.70831907,0.0002691,2]
[329886849,1718794243481,-151.0,0.0002691,2]
[329886850,1718794243491,-687.74554244,0.00026944,2]
[329886851,1718794243500,-669.07340969,0.00026976,2]
[329886852,1718794243510,-669.07340969,0.00026978,2]
[329886853,1718794243520,-172.9842993,0.00027,2]
[329886854,1718794243529,-687.74554244,0.00027014,2]
[329886855,1718794243539,-687.74554244,0.00027116,2]
[329886856,1718794243549,-687.74554244,0.0002713,2]
[329886857,1718794243559,-687.74554244,0.00027145,2]
[329886858,1718794243569,-687.74554244,0.00027174,2]
[329886859,1718794243579,-712.5,0.00027195,2]
[329886860,1718794243589,-687.74554244,0.00027233,2]
[329886861,1718794243599,-687.74554244,0.00027267,2]
[329886862,1718794243608,-687.74554244,0.00027283,2]
[329886863,1718794243618,-669.07340969,0.00027299,2]
[329886864,1718794243628,-669.07340969,0.00027374,2]
[329886865,1718794243638,-479.67769975,0.00027397,2]
[329886866,1718794243649,-907.307349,0.00027397,120]
[329886867,1718794243659,-335.64063905,0.000274,2]
[329886868,1718794243668,-669.07340969,0.00027429,2]
[329886869,1718794243678,-687.74554244,0.00027457,2]
[329886873,1718794243687,-669.07340969,0.00027492,2]
[329886876,1718794243696,-228.60271977,0.000275,30]
[329886891,1718794243795,-155.0,0.000275,17]
[329886893,1718794243805,-669.07340969,0.00027554,2]
[329886895,1718794243815,-687.74554244,0.00027557,2]
[329886897,1718794243824,-198.49736479,0.00027598,2]
[329886899,1718794243834,-687.74554244,0.00027655,2]
[329886901,1718794243843,-669.07340969,0.00027673,2]
[329886903,1718794243853,-669.07340994,0.00027697,2]
[329886905,1718794243863,-687.74554244,0.00027709,2]
[329886907,1718794243874,-687.74554265,0.00027855,2]
[329886908,1718794243884,-514.14942604,0.00028,2]
[329886909,1718794243895,-1000.0,0.00028,28]
[329886910,1718794243905,-151.0,0.00028,2]
[329886911,1718794243914,-151.0,0.00028,2]
[329886912,1718794243929,-151.0,0.00028,2]
[329886913,1718794243940,-151.0,0.00028,2]
[329886914,1718794243950,-154.1560446,0.00028228,2]
[329886915,1718794243960,-153.0,0.00028228,2]
[329886916,1718794243970,-153.0,0.00028228,2]
[329886917,1718794243982,-153.0,0.00028228,2]
[329886918,1718794243991,-153.0,0.00028228,2]
[329886919,1718794244000,-153.0,0.00028228,2]
[329886920,1718794244012,-153.0,0.00028228,2]
[329886921,1718794244022,-153.0,0.00028228,2]
[329886922,1718794244031,-150.80395486,0.00028258,2]
[329886924,1718794244042,-250.16566464,0.00028258,2]
[329886925,1718794244051,-320.954775,0.000283,2]
[329886926,1718794244061,-320.954775,0.000283,2]
[329886927,1718794244071,-1967.296785,0.000283,2]
[329886928,1718794244080,-151.0,0.00028309,2]
[329886929,1718794244092,-320.954775,0.00028309,2]
[329886930,1718794244102,-320.954775,0.00028309,2]
[329886931,1718794244112,-151.0,0.00028309,2]
[329886932,1718794244121,-151.0,0.00028309,2]
[329886933,1718794244130,-151.0,0.00028309,2]
[329886934,1718794244141,-151.0,0.00028309,2]
[329886935,1718794244151,-88888.0,0.00028309,3]
[329886936,1718794244160,-2064.50390663,0.0002831,30]
[329886937,1718794244169,-761.92923815,0.00028311,3]
[329886938,1718794244179,-435.0,0.00028312,2]
[329886939,1718794244188,-275.92715152,0.00028313,2]
[329886940,1718794244198,-293.46911823,0.00028313,2]
[329886941,1718794244208,-1119.12089177,0.00028315,2]
[329886942,1718794244217,-250.07893174,0.00028315,2]
[329886943,1718794244227,-155.22776446,0.00028315,2]
[329886944,1718794244236,-154.81422293,0.00028318,7]
[329886945,1718794244246,-163.469036,0.00028381,2]
[329886946,1718794244255,-151.0,0.00028413,2]
[329886947,1718794244265,-320.954775,0.00028413,2]
[329886948,1718794244274,-320.954775,0.00028413,2]
[329886949,1718794244283,-151.0,0.00028413,2]
[329886950,1718794244295,-151.0,0.00028413,2]
[329886951,1718794244304,-211.401612,0.00028413,2]
[329886952,1718794244314,-300.0,0.00028413,2]
[329886953,1718794244324,-785.38586822,0.00028413,2]
[329886954,1718794244334,-508.92250003,0.00028413,2]
[329886955,1718794244343,-288.05272952,0.00028413,2]
[329886956,1718794244353,-317.13596113,0.00028413,2]
[329886957,1718794244363,-1036.10358888,0.00028413,2]
[329886958,1718794244372,-152.78779084,0.00028413,2]
[329886959,1718794244381,-221.15475485,0.00028413,2]
[329886960,1718794244391,-432.9567091,0.00028413,2]
[329886961,1718794244401,-3026.77429435,0.00028413,2]
[329886962,1718794244411,-1008.37228793,0.00028413,2]
[329886963,1718794244422,-694.07661044,0.00028413,120]
[329886964,1718794244431,-1000.0,0.00028413,120]
[329886965,1718794244442,-1000.0,0.00028413,120]
[329886966,1718794244452,-289.9,0.00028413,120]
[329886967,1718794244461,-160.0,0.00028413,30]
[329886968,1718794244470,-855.86050554,0.00028413,120]
[329886969,1718794244480,-473.59214174,0.00028413,120]
[329886970,1718794244489,-508.94464307,0.00028413,30]
[329886971,1718794244500,-1327.38092334,0.00028413,30]
[329886973,1718794244510,-790.3286465,0.00028413,30]
[329886975,1718794244520,-226.54527872,0.00028413,10]
[329886977,1718794244530,-4108.28382413,0.00028413,2]
[329886979,1718794244539,-2048.93249724,0.00028413,120]
[329886980,1718794244549,-218.59802641,0.00028413,120]
[329886981,1718794244559,-1168.28731516,0.00028413,30]
[329886982,1718794244568,-193.86483565,0.00028413,120]
[329886983,1718794244578,-200.38416412,0.00028413,60]
[329886984,1718794244589,-1695.50449176,0.00028413,30]
[329886985,1718794244599,-9992.72460576,0.00028413,2]
[329886986,1718794244608,-1029.58066167,0.00028413,10]
[329886987,1718794244618,-488.81789336,0.00028413,120]
[329886988,1718794244627,-250.47777118,0.00028413,120]
[329886989,1718794244637,-229.17798948,0.00028413,30]
[329886990,1718794244647,-3610.17594094,0.00028413,2]
[329886991,1718794244657,-1699.84049335,0.00028413,30]
[329886992,1718794244666,-881.88198402,0.00028413,120]
[329886993,1718794244675,-4496.78524187,0.00028413,2]
[329886994,1718794244684,-1094.51715548,0.00028413,30]
[329886995,1718794244693,-1371.19510763,0.00028413,2]
[329886996,1718794244703,-2735.0,0.00028413,30]
[329886997,1718794244713,-981.51963528,0.00028413,2]
[329886998,1718794244724,-153.72335557,0.00028413,30]
[329886999,1718794244734,-153.72335557,0.00028413,30]
[329887000,1718794244743,-153.72335557,0.00028413,30]
[329887001,1718794244752,-153.72335557,0.00028413,30]
[329887002,1718794244762,-153.72335557,0.00028413,30]
[329887003,1718794244772,-153.72335557,0.00028413,30]
[329887004,1718794244781,-153.72335557,0.00028413,30]
[329887005,1718794244791,-153.72335557,0.00028413,30]
[329887006,1718794244801,-153.72335557,0.00028413,30]
[329887007,1718794244811,-153.72335557,0.00028413,30]
[329887008,1718794244821,-153.72335557,0.00028413,30]
[329887009,1718794244830,-153.72335557,0.00028413,30]
[329887010,1718794244840,-400.0,0.00028413,30]
[329887011,1718794244849,-400.0,0.00028413,30]
[329887012,1718794244859,-400.0,0.00028413,30]
[329887013,1718794244869,-601.19688,0.00028413,30]
[329887014,1718794244879,-624.72960651,0.000285,2]
[329887015,1718794244889,-301.60790972,0.00028733,4]
[329887016,1718794244900,-1022.97825543,0.000289,2]
[329887017,1718794244909,-359.34179874,0.0002892,30]
[329887018,1718794244920,-783.13124269,0.00028995,2]
[329887019,1718794244930,-12151.25781975,0.00029,30]
[329887020,1718794244943,-847.54869484,0.00029,2]
[329887021,1718794244952,-2001.99615734,0.00029,120]
[329887022,1718794244962,-1000.0,0.00029,29]
[329887023,1718794244972,-365.4616418,0.0002905,2]
[329887024,1718794244983,-307.4525034,0.0002905,2]
[329887025,1718794244993,-306.2646442,0.0002905,2]
[329887026,1718794245002,-227.1115978,0.0002905,2]
[329887027,1718794245014,-153.0,0.0002905,2]
[329887028,1718794245024,-153.0,0.0002905,2]
[329887029,1718794245034,-153.0,0.0002905,2]
[329887030,1718794245043,-153.0,0.0002905,2]
[329887031,1718794245053,-153.0,0.0002905,2]
[329887032,1718794245062,-153.0,0.0002905,2]
[329887033,1718794245072,-153.0,0.0002905,2]
[329887034,1718794245081,-292.853427,0.0002905,2]
[329887035,1718794245091,-155.0,0.0002913,20]
[329887036,1718794245101,-176.41709316,0.000292,2]
[329887037,1718794245111,-603.21581943,0.00029216,7]
[329887038,1718794245121,-153.72335546,0.00029736,30]
[329887039,1718794245130,-408.370917,0.00029872,2]
[329887040,1718794245140,-205.5970001,0.00029872,2]
[329887041,1718794245150,-205.5970001,0.00029872,2]
[329887042,1718794245159,-205.5970001,0.00029872,2]
[329887043,1718794245168,-205.5970001,0.00029872,2]
[329887044,1718794245178,-399.4632354,0.00029872,2]
[329887045,1718794245187,-153.0,0.00029876,2]
[329887046,1718794245197,-153.0,0.00029876,2]
[329887047,1718794245206,-1206.43163887,0.00029956,30]
[329887048,1718794245216,-165.69351699,0.0003,4]
[329887049,1718794245226,-469.99127,0.0003,4]
[329887050,1718794245235,-350.15127391,0.0003,30]
[329887051,1718794245245,-500.0,0.0003,28]
[329887052,1718794245254,-383.26316253,0.0003,10]
[329887053,1718794245263,-1500.0,0.0003,2]
[329887054,1718794245273,-202.17663286,0.0003,30]
[329887055,1718794245282,-362.37268635,0.0003,120]
[329887056,1718794245291,-500.0,0.0003,120]
[329887057,1718794245301,-2003.5043,0.0003,60]
[329887058,1718794245311,-260.0,0.0003,2]
[329887059,1718794245320,-269.92047701,0.0003,2]
[329887060,1718794245329,-153.72335557,0.00030236,30]
[329887061,1718794245338,-153.0,0.00030694,2]
[329887062,1718794245347,-247.2536749,0.00030694,2]
[329887063,1718794245356,-153.0,0.00030694,2]
[329887064,1718794245366,-153.0,0.00030694,2]
[329887065,1718794245375,-153.0,0.00030694,2]
[329887066,1718794245384,-306.6086377,0.00030694,2]
[329887067,1718794245395,-153.0,0.00030707,2]
[329887068,1718794245405,-153.0,0.00030707,2]
[329887069,1718794245414,-306.0,0.00030707,2]
[329887070,1718794245423,-153.0,0.00030707,2]
[329887071,1718794245433,-153.0,0.00030707,2]
[329887072,1718794245442,-153.0,0.00030707,2]
[329887073,1718794245452,-153.0,0.00030707,2]
[329887074,1718794245461,-151.0,0.00030707,2]
[329887075,1718794245471,-151.0,0.00030708,2]
[329887076,1718794245479,-153.0,0.00030708,2]
[329887077,1718794245489,-306.0,0.00030708,2]
[329887078,1718794245498,-153.0,0.00030708,2]
[329887079,1718794245507,-153.0,0.00030708,2]
[329887080,1718794245516,-153.0,0.00030708,2]
[329887081,1718794245526,-153.72335557,0.00030736,30]
[329887082,1718794245535,-155.0,0.0003075,23]
[329887083,1718794245544,-151.0,0.00030821,2]
[329887084,1718794245554,-1100.0,0.00031,30]
[329887085,1718794245564,-320.954775,0.00031,2]
[329887086,1718794245573,-320.954775,0.00031,2]
[329887087,1718794245583,-153.72335557,0.00031236,30]
[329887088,1718794245593,-184.621822,0.00031505,2]
[329887089,1718794245603,-292.853427,0.00031528,2]
[329887090,1718794245612,-160.1678116,0.00031529,2]
[329887091,1718794245622,-585.498787,0.00031529,2]
[329887092,1718794245632,-153.72335557,0.00031736,30]
[329887093,1718794245642,-907.307349,0.00031963,120]
[329887094,1718794245652,-307.1882834,0.00032075,2]
[329887095,1718794245661,-153.72335557,0.00032236,30]
[329887096,1718794245671,-205.5970001,0.00032349,2]
[329887097,1718794245680,-292.853427,0.00032349,2]
[329887098,1718794245689,-205.5970001,0.00032349,2]
[329887099,1718794245698,-278.9261283,0.00032349,2]
[329887100,1718794245708,-205.5970001,0.00032349,2]
[329887101,1718794245718,-205.5970001,0.00032349,2]
[329887102,1718794245727,-205.5970001,0.00032349,2]
[329887103,1718794245737,-172.1440748,0.0003235,2]
[329887104,1718794245746,-292.853427,0.00032352,2]
[329887105,1718794245755,-292.853427,0.00032352,2]
[329887106,1718794245764,-292.853427,0.00032352,2]
[329887107,1718794245774,-292.853427,0.00032352,2]
[329887108,1718794245783,-205.5970001,0.00032352,2]
[329887109,1718794245795,-292.853427,0.00032352,2]
[329887110,1718794245804,-205.5970001,0.00032352,2]
[329887111,1718794245815,-292.853427,0.00032352,2]
[329887112,1718794245827,-205.5970001,0.00032352,2]
[329887113,1718794245838,-292.853427,0.00032352,2]
[329887114,1718794245847,-205.5970001,0.00032352,2]
[329887115,1718794245856,-205.5970001,0.00032352,2]
[329887116,1718794245866,-292.853427,0.00032352,2]
[329887117,1718794245876,-292.853427,0.00032352,2]
[329887118,1718794245888,-205.5970001,0.00032352,2]
[329887119,1718794245898,-205.5970001,0.00032352,2]
[329887120,1718794245907,-292.853427,0.00032352,2]
[329887121,1718794245917,-292.853427,0.00032352,2]
[329887122,1718794245930,-205.5970001,0.00032352,2]
[329887123,1718794245944,-292.853427,0.00032352,2]
[329887124,1718794245954,-205.5970001,0.00032352,2]
[329887125,1718794245964,-205.5970001,0.00032352,2]
[329887126,1718794245976,-205.5970001,0.00032352,2]
[329887127,1718794245985,-568.4852619,0.00032352,2]
[329887128,1718794245995,-205.5970001,0.00032352,2]
[329887129,1718794246089,-205.5970001,0.00032352,2]
[329887130,1718794246099,-153.72335557,0.00032736,30]
[329887131,1718794246108,-153.0,0.000329,2]
[329887132,1718794246117,-153.0,0.000329,2]
[329887133,1718794246126,-153.0,0.000329,2]
[329887134,1718794246136,-260.0,0.00033,2]
[329887135,1718794246147,-260.0,0.00033,2]